fUSD/lending_fUSD_20250620
["ID","MTS","AMOUNT","RATE_DAILY","PERIOD"]
[366743551,1750427448196,-490.0,0.00026281,4]
[366743552,1750427448207,-226.71,0.00026281,4]
[366743555,1750427448219,-1565.43420007,0.00026281,4]
[366743557,1750427448234,-2155.35579993,0.00026281,4]
[366743559,1750427448245,-490.0,0.00026281,4]
[366743562,1750427448265,-332.14420007,0.00026281,4]
[366743565,1750427448285,-340.66579993,0.00026281,4]
[366743567,1750427448297,-490.0,0.00026282,4]
[366743569,1750427448308,-502.79,0.00026282,4]
[366743571,1750427448320,-210.73,0.00026282,4]
[366743573,1750427448331,-490.0,0.00026282,4]
[366743575,1750427448343,-153.99,0.00026282,4]
[366743577,1750427448355,-490.0,0.00026282,4]
[366743580,1750427448367,-592.46,0.00026282,4]
[366743582,1750427448378,-490.0,0.00026282,4]
[366743584,1750427448389,-490.0,0.00026282,4]
[366743586,1750427448399,-490.0,0.00026282,4]
[366743588,1750427448411,-490.0,0.00026282,4]
[366743590,1750427448423,-490.0,0.00026282,4]
[366743592,1750427448434,-490.0,0.00026282,4]
[366743594,1750427448446,-490.0,0.00026282,4]
[366743596,1750427448458,-637.29,0.00026282,4]
[366743598,1750427448469,-490.0,0.00026282,4]
[366743600,1750427448480,-490.0,0.00026282,4]
[366743602,1750427448491,-490.0,0.00026282,4]
[366743605,1750427448502,-490.0,0.00026282,4]
[366743607,1750427448513,-490.0,0.00026282,4]
[366743609,1750427448525,-490.0,0.00026282,4]
[366743611,1750427448536,-564.28288127,0.00026282,4]
[366743613,1750427448548,-490.0,0.00026282,4]
[366743615,1750427448559,-490.0,0.00026282,4]
[366743617,1750427448571,-490.0,0.00026282,4]
[366743619,1750427448582,-490.0,0.00026282,4]
[366743621,1750427448592,-665.56,0.00026282,4]
[366743623,1750427448604,-490.0,0.00026282,4]
[366743625,1750427448615,-490.0,0.00026282,4]
[366743627,1750427448628,-490.0,0.00026282,4]
[366743629,1750427448639,-490.0,0.00026282,4]
[366743632,1750427448652,-490.0,0.00026282,4]
[366743634,1750427448663,-300.0,0.00026282,4]
[366743636,1750427448674,-490.0,0.00026282,4]
[366743639,1750427448693,-490.0,0.00026282,4]
[366743641,1750427448706,-598.38,0.00026282,4]
[366743643,1750427448717,-490.0,0.00026282,4]
[366743645,1750427448729,-237.05035267,0.00026282,4]
[366743648,1750427448743,-252.94964733,0.00026282,4]
[366743650,1750427448755,-490.0,0.00026282,4]
[366743652,1750427448767,-490.0,0.00026282,4]
[366743654,1750427448779,-428.15829737,0.00026282,4]
[366743656,1750427448793,-61.84170263,0.00026282,4]
[366743658,1750427448804,-483.15829737,0.00026282,4]
[366743661,1750427448818,-6.84170263,0.00026282,4]
[366743663,1750427448829,-490.0,0.00026282,4]
[366743665,1750427448841,-490.0,0.00026282,4]
[366743667,1750427448854,-490.0,0.00026282,4]
[366743669,1750427448865,-490.0,0.00026282,4]
[366743671,1750427448877,-490.0,0.00026282,4]
[366743673,1750427448889,-490.0,0.00026282,4]
[366743676,1750427448900,-490.0,0.00026282,4]
[366743678,1750427448911,-490.0,0.00026282,4]
[366743680,1750427448922,-523.56,0.00026282,4]
[366743682,1750427448933,-676.72,0.00026282,4]
[366743684,1750427448945,-347.09,0.00026282,4]
[366743686,1750427448957,-534.84,0.00026282,4]
[366743688,1750427448968,-1444.99,0.00026282,4]
[366743690,1750427448979,-490.0,0.00026282,4]
[366743692,1750427448990,-490.0,0.00026282,4]
[366743694,1750427449001,-490.0,0.00026282,4]
[366743696,1750427449012,-212.92,0.00026282,4]
[366743698,1750427449023,-490.0,0.00026282,4]
[366743700,1750427449034,-237.36,0.00026282,4]
[366743702,1750427449047,-490.0,0.00026282,4]
[366743704,1750427449060,-490.0,0.00026282,4]
[366743706,1750427449071,-578.53,0.00026282,4]
[366743708,1750427449083,-490.0,0.00026282,4]
[366743711,1750427449095,-490.0,0.00026282,4]
[366743713,1750427449106,-490.0,0.00026282,4]
[366743715,1750427449123,-786.94,0.00026282,4]
[366743717,1750427449135,-490.0,0.00026282,4]
[366743719,1750427449147,-313.99,0.00026282,4]
[366743721,1750427449162,-490.0,0.00026282,4]
[366743723,1750427449175,-490.0,0.00026282,4]
[366743725,1750427449186,-490.0,0.00026282,4]
[366743728,1750427449199,-490.0,0.00026282,4]
[366743730,1750427449211,-490.0,0.00026282,4]
[366743732,1750427449223,-511.82,0.00026282,4]
[366743734,1750427449234,-2642.88791,0.00026282,2]
[366743736,1750427449247,-528.78115571,0.00026348,14]
[366743738,1750427449260,-2642.88791,0.0002636,2]
[366743740,1750427449272,-150.0,0.00026435,2]
[366743742,1750427449285,-151.40496026,0.00026463,2]
[366743744,1750427449296,-2642.88791,0.0002648,2]
[366743747,1750427449308,-500.0,0.000265,9]
[366743749,1750427449319,-201.0,0.00026515,6]
[366743751,1750427449331,-150.0,0.00026525,2]
[366743753,1750427449344,-490.0,0.00026545,4]
[366743755,1750427449355,-490.0,0.00026545,4]
[366743757,1750427449368,-490.0,0.00026545,4]
[366743759,1750427449383,-490.0,0.00026545,4]
[366743761,1750427449395,-229.72,0.00026545,4]
[366743763,1750427449407,-339.58514514,0.00026545,4]
[366743766,1750427449418,-490.0,0.00026545,4]
[366743768,1750427449429,-490.0,0.00026545,4]
[366743770,1750427449441,-490.0,0.00026545,4]
[366743772,1750427449452,-490.0,0.00026545,2]
[366743774,1750427449463,-490.0,0.00026545,4]
[366743776,1750427449474,-490.0,0.00026546,4]
[366743778,1750427449486,-490.0,0.00026546,4]
[366743780,1750427449498,-490.0,0.00026546,4]
[366743783,1750427449511,-491.58787408,0.00026546,4]
[366743785,1750427449824,-490.0,0.00026546,4]
[366743786,1750427449837,-490.0,0.00026546,4]
[366743787,1750427449848,-699.86,0.00026546,4]
[366743788,1750427449858,-490.0,0.00026546,4]
[366743789,1750427449869,-853.29,0.00026546,4]
[366743790,1750427449879,-490.0,0.00026546,4]
[366743791,1750427449890,-490.0,0.00026546,4]
[366743792,1750427449900,-490.0,0.00026546,4]
[366743793,1750427449909,-490.0,0.00026546,4]
[366743794,1750427449919,-490.0,0.00026546,4]
[366743795,1750427449930,-490.0,0.00026546,4]
[366743796,1750427449941,-490.0,0.00026546,4]
[366743797,1750427449952,-490.0,0.00026546,4]
[366743798,1750427449963,-524.06,0.00026546,4]
[366743799,1750427449972,-636.28,0.00026546,4]
[366743800,1750427449982,-490.0,0.00026546,4]
[366743801,1750427449992,-491.96,0.00026546,4]
[366743802,1750427450002,-490.0,0.00026546,4]
[366743803,1750427450012,-658.32,0.00026546,4]
[366743804,1750427450022,-490.0,0.00026546,4]
[366743805,1750427450032,-490.0,0.00026546,4]
[366743806,1750427450043,-336.16,0.00026546,4]
[366743807,1750427450053,-490.0,0.00026546,4]
[366743808,1750427450064,-490.0,0.00026546,4]
[366743809,1750427450074,-344.99,0.00026546,4]
[366743810,1750427450085,-246.51,0.00026546,4]
[366743811,1750427450096,-1256.21,0.00026546,4]
[366743812,1750427450107,-490.0,0.00026546,4]
[366743813,1750427450117,-490.0,0.00026546,4]
[366743814,1750427450127,-490.0,0.00026546,4]
[366743815,1750427450137,-880.81,0.00026546,4]
[366743816,1750427450146,-490.0,0.00026546,4]
[366743817,1750427450160,-490.0,0.00026546,4]
[366743818,1750427450170,-490.0,0.00026546,4]
[366743819,1750427450181,-490.0,0.00026546,4]
[366743820,1750427450191,-216.03,0.00026546,4]
[366743821,1750427450201,-490.0,0.00026546,4]
[366743822,1750427450211,-622.69,0.00026546,4]
[366743823,1750427450222,-194.65,0.00026546,4]
[366743824,1750427450232,-490.0,0.00026546,4]
[366743825,1750427450243,-490.0,0.00026546,4]
[366743826,1750427450255,-398.38,0.00026546,4]
[366743827,1750427450265,-718.1,0.00026546,4]
[366743828,1750427450275,-490.0,0.00026546,4]
[366743829,1750427450284,-490.0,0.00026546,4]
[366743830,1750427450295,-490.0,0.00026546,4]
[366743831,1750427450305,-1116.34,0.00026546,4]
[366743832,1750427450315,-490.0,0.00026546,4]
[366743833,1750427450325,-369.25,0.00026546,4]
[366743834,1750427450339,-490.0,0.00026546,4]
[366743835,1750427450350,-490.0,0.00026546,4]
[366743836,1750427450362,-490.0,0.00026546,4]
[366743838,1750427450372,-490.0,0.00026546,4]
[366743839,1750427450383,-490.0,0.00026546,4]
[366743840,1750427450393,-490.0,0.00026546,4]
[366743841,1750427450404,-490.0,0.00026546,4]
[366743842,1750427450414,-490.0,0.00026546,4]
[366743843,1750427450424,-624.78733428,0.00026546,4]
[366743844,1750427450434,-939.96,0.00026546,4]
[366743845,1750427450445,-386.94,0.00026546,4]
[366743846,1750427450454,-490.0,0.00026546,4]
[366743847,1750427450465,-490.0,0.00026546,4]
[366743848,1750427450475,-490.0,0.00026546,4]
[366743849,1750427450486,-564.28,0.00026546,4]
[366743850,1750427450496,-490.0,0.00026546,4]
[366743851,1750427450507,-490.0,0.00026546,4]
[366743852,1750427450517,-5011.55,0.00026546,4]
[366743853,1750427450527,-619.84,0.00026546,4]
[366743854,1750427450537,-490.0,0.00026546,4]
[366743855,1750427450547,-490.0,0.00026546,4]
[366743856,1750427450558,-812.9,0.00026546,4]
[366743857,1750427450568,-618.45,0.00026546,4]
[366743858,1750427450578,-490.0,0.00026546,4]
[366743859,1750427450591,-2811.46,0.00026546,4]
[366743860,1750427450601,-490.0,0.00026546,4]
[366743861,1750427450611,-490.0,0.00026546,4]
[366743862,1750427450621,-490.0,0.00026546,4]
[366743863,1750427450632,-490.0,0.00026546,4]
[366743864,1750427450643,-490.0,0.00026546,4]
[366743865,1750427450652,-490.0,0.00026546,4]
[366743866,1750427450662,-490.0,0.00026546,4]
[366743867,1750427450672,-271.7,0.00026546,4]
[366743868,1750427450683,-490.0,0.00026546,4]
[366743869,1750427450693,-618.97,0.00026546,4]
[366743870,1750427450704,-490.0,0.00026546,4]
[366743871,1750427450714,-464.76280916,0.00026546,4]
[366743872,1750427450724,-1739.92,0.00026546,4]
[366743873,1750427450735,-537.58705076,0.00026546,4]
[366743874,1750427450745,-1134.35,0.00026546,4]
[366743875,1750427450756,-490.0,0.00026546,4]
[366743876,1750427450766,-490.0,0.00026546,4]
[366743877,1750427450777,-831.29,0.00026546,4]
[366743878,1750427450787,-490.0,0.00026546,4]
[366743879,1750427450798,-490.0,0.00026546,4]
[366743880,1750427450808,-490.0,0.00026546,4]
[366743881,1750427450818,-490.0,0.00026546,4]
[366743882,1750427450828,-490.0,0.00026546,4]
[366743883,1750427450840,-490.0,0.00026546,4]
[366743884,1750427450850,-490.0,0.00026546,4]
[366743885,1750427450861,-490.0,0.00026546,4]
[366743886,1750427450871,-711.97,0.00026546,4]
[366743887,1750427450881,-756.82,0.00026546,4]
[366743888,1750427450891,-490.0,0.00026546,4]
[366743889,1750427450902,-311.44940803,0.00026546,4]
[366743890,1750427450912,-785.16,0.00026546,4]
[366743891,1750427450922,-490.0,0.00026546,4]
[366743892,1750427450932,-490.0,0.00026546,4]
[366743893,1750427450941,-490.0,0.00026546,4]
[366743894,1750427450952,-490.0,0.00026546,4]
[366743895,1750427450961,-419.32,0.00026546,4]
[366743896,1750427450971,-601.56,0.00026546,4]
[366743897,1750427450982,-666.62,0.00026546,4]
[366743898,1750427450993,-346.12,0.00026546,4]
[366743899,1750427451003,-490.0,0.00026546,4]
[366743900,1750427451013,-490.0,0.00026546,4]
[366743902,1750427451023,-190.88,0.00026546,4]
[366743904,1750427451033,-490.0,0.00026546,4]
[366743905,1750427451043,-672.33,0.00026546,4]
[366743906,1750427451053,-490.0,0.00026546,4]
[366743907,1750427451063,-1402.92,0.00026546,4]
[366743908,1750427451074,-208.16,0.00026546,4]
[366743909,1750427451086,-490.0,0.00026546,4]
[366743910,1750427451097,-314.46,0.00026546,4]
[366743911,1750427451108,-490.0,0.00026546,4]
[366743912,1750427451118,-490.0,0.00026546,4]
[366743913,1750427451128,-507.26,0.00026546,4]
[366743914,1750427451138,-490.0,0.00026546,4]
[366743915,1750427451148,-490.0,0.00026546,4]
[366743916,1750427451161,-490.0,0.00026546,4]
[366743917,1750427451171,-490.0,0.00026546,4]
[366743919,1750427451181,-490.0,0.00026546,4]
[366743921,1750427451192,-490.0,0.00026546,4]
[366743923,1750427451203,-206.25,0.00026546,4]
[366743925,1750427451213,-2852.83,0.00026546,4]
[366743926,1750427451223,-608.77,0.00026546,4]
[366743927,1750427451233,-495.51,0.00026546,4]
[366743928,1750427451243,-490.0,0.00026546,4]
[366743929,1750427451252,-490.0,0.00026546,4]
[366743930,1750427451262,-490.0,0.00026546,4]
[366743931,1750427451271,-490.0,0.00026546,4]
[366743932,1750427451281,-490.0,0.00026546,4]
[366743933,1750427451291,-490.0,0.00026546,4]
[366743934,1750427451302,-178.84,0.00026546,4]
[366743935,1750427451312,-490.0,0.00026546,4]
[366743936,1750427451322,-789.96,0.00026546,4]
[366743937,1750427451333,-162.49,0.00026546,4]
[366743938,1750427451342,-490.0,0.00026546,4]
[366743939,1750427451352,-170.64,0.00026546,4]
[366743940,1750427451362,-428.2,0.00026546,4]
[366743941,1750427451372,-195.07,0.00026546,4]
[366743942,1750427451383,-490.0,0.00026546,4]
[366743943,1750427451393,-490.0,0.00026546,4]
[366743944,1750427451403,-904.78,0.00026546,4]
[366743945,1750427451413,-490.0,0.00026546,4]
[366743946,1750427451423,-464.68,0.00026546,4]
[366743947,1750427451433,-912.9,0.00026546,4]
[366743948,1750427451444,-490.0,0.00026546,4]
[366743949,1750427451454,-901.29,0.00026546,4]
[366743950,1750427451464,-490.0,0.00026546,4]
[366743951,1750427451474,-490.0,0.00026546,4]
[366743952,1750427451483,-490.0,0.00026546,4]
[366743953,1750427451493,-490.0,0.00026546,4]
[366743954,1750427451503,-321.97,0.00026546,4]
[366743955,1750427451513,-217.23,0.00026546,4]
[366743956,1750427451523,-490.0,0.00026546,4]
[366743957,1750427451533,-1000.0,0.00026546,2]
[366743958,1750427451544,-2372.33,0.00026546,4]
[366743959,1750427451554,-196.84,0.00026546,4]
[366743960,1750427451564,-490.0,0.00026546,4]
[366743961,1750427451574,-490.0,0.00026546,4]
[366743962,1750427451587,-490.0,0.00026546,4]
[366743963,1750427451597,-190.63,0.00026546,4]
[366743964,1750427451607,-223.9,0.00026546,4]
[366743965,1750427451617,-490.0,0.00026546,4]
[366743966,1750427451628,-490.0,0.00026546,4]
[366743967,1750427451639,-2429.4,0.00026546,4]
[366743968,1750427451649,-490.0,0.00026546,4]
[366743969,1750427451659,-1076.74,0.00026546,4]
[366743970,1750427451669,-490.0,0.00026546,4]
[366743971,1750427451679,-259.79,0.00026546,4]
[366743972,1750427451688,-619.66,0.00026546,4]
[366743973,1750427451699,-492.43,0.00026546,4]
[366743974,1750427451708,-451.97,0.00026546,4]
[366743975,1750427451719,-479.28,0.00026546,4]
[366743976,1750427451730,-158.18,0.00026546,4]
[366743977,1750427451740,-971.81,0.00026546,4]
[366743978,1750427451750,-403.25,0.00026546,4]
[366743979,1750427451761,-603.15,0.00026546,4]
[366743980,1750427451771,-490.0,0.00026546,4]
[366743981,1750427451780,-793.7,0.00026546,4]
[366743982,1750427451790,-490.0,0.00026546,4]
[366743983,1750427451799,-557.29,0.00026546,4]
[366743984,1750427451810,-1962.5,0.00026546,4]
[366743985,1750427451820,-490.0,0.00026546,4]
[366743986,1750427451830,-1165.54,0.00026546,4]
[366743987,1750427451841,-1727.64,0.00026546,4]
[366743988,1750427451851,-597.32,0.00026546,4]
[366743989,1750427451862,-531.05,0.00026546,4]
[366743990,1750427451871,-490.0,0.00026547,4]
[366743991,1750427451881,-490.0,0.00026547,4]
[366743992,1750427451891,-528.98,0.00026547,4]
[366743993,1750427451900,-490.0,0.00026547,4]
[366743994,1750427451910,-490.0,0.00026547,4]
[366743995,1750427451920,-490.0,0.00026547,4]
[366743996,1750427451930,-504.22809475,0.00026547,4]
[366743997,1750427451939,-490.0,0.00026547,4]
[366743998,1750427451949,-536.31,0.00026547,4]
[366743999,1750427451959,-490.0,0.00026547,4]
[366744000,1750427451969,-490.0,0.00026547,4]
[366744001,1750427451979,-490.0,0.00026547,4]
[366744002,1750427451989,-490.0,0.00026547,4]
[366744003,1750427451999,-490.0,0.00026547,4]
[366744004,1750427452010,-490.0,0.00026547,4]
[366744005,1750427452020,-490.0,0.00026547,4]
[366744006,1750427452030,-490.0,0.00026547,4]
[366744007,1750427452039,-490.0,0.00026547,4]
[366744008,1750427452049,-490.0,0.00026547,4]
[366744009,1750427452059,-490.0,0.00026547,4]
[366744010,1750427452068,-250.0,0.00026551,2]
[366744011,1750427452078,-250.0,0.00026551,2]
[366744012,1750427452090,-490.0,0.00026553,4]
[366744013,1750427452100,-490.0,0.00026553,4]
[366744014,1750427452110,-490.0,0.00026553,4]
[366744015,1750427452120,-490.0,0.00026553,4]
[366744016,1750427452130,-490.0,0.00026553,4]
[366744017,1750427452140,-490.0,0.00026553,4]
[366744018,1750427452150,-496.27368078,0.00026553,4]
[366744019,1750427452163,-498.46723829,0.00026553,4]
[366744020,1750427452172,-493.76417671,0.00026553,4]
[366744021,1750427452182,-490.0,0.00026553,4]
[366744022,1750427452193,-490.0,0.00026553,4]
[366744023,1750427452203,-1012.09953117,0.00026553,4]
[366744024,1750427452214,-490.0,0.00026555,4]
[366744025,1750427452223,-490.0,0.00026555,4]
[366744026,1750427452234,-490.0,0.00026555,4]
[366744027,1750427452245,-280.13842326,0.00026555,4]
[366744028,1750427452255,-491.21257602,0.00026555,4]
[366744029,1750427452264,-490.0,0.00026555,4]
[366744030,1750427452274,-490.0,0.00026555,4]
[366744031,1750427452284,-490.0,0.00026555,4]
[366744032,1750427452344,-490.0,0.00026555,4]
[366744033,1750427452354,-490.0,0.00026555,4]
[366744034,1750427452366,-490.0,0.00026555,4]
[366744035,1750427452376,-490.0,0.00026555,4]
[366744036,1750427452387,-3720.79,0.00026555,4]
[366744037,1750427452396,-490.0,0.00026555,4]
[366744038,1750427452408,-490.0,0.00026556,4]
[366744039,1750427452417,-151.0,0.00026556,7]
[366744040,1750427452428,-163.1631,0.00026556,7]
[366744041,1750427452438,-199.831116,0.00026556,7]
[366744042,1750427452448,-199.831116,0.00026556,7]
[366744043,1750427452457,-490.0,0.00026556,4]
[366744044,1750427452467,-490.0,0.00026556,4]
[366744045,1750427452477,-592.46,0.00026556,4]
[366744046,1750427452486,-490.0,0.00026556,4]
[366744047,1750427452497,-490.0,0.00026556,4]
[366744048,1750427452506,-490.0,0.00026556,4]
[366744049,1750427452516,-490.0,0.00026556,4]
[366744050,1750427452526,-490.0,0.00026556,4]
[366744051,1750427452536,-164.3,0.00026556,4]
[366744052,1750427452545,-490.0,0.00026556,4]
[366744053,1750427452554,-284.3,0.00026556,4]
[366744054,1750427452564,-490.0,0.00026556,4]
[366744055,1750427452574,-490.0,0.00026556,4]
[366744056,1750427452583,-490.0,0.00026556,4]
[366744057,1750427452592,-490.0,0.00026556,4]
[366744058,1750427452602,-291.77,0.00026556,4]
[366744059,1750427452611,-490.0,0.00026556,4]
[366744060,1750427452620,-490.0,0.00026556,4]
[366744061,1750427452630,-665.56,0.00026556,4]
[366744062,1750427452640,-490.0,0.00026556,4]
[366744063,1750427452649,-490.0,0.00026556,4]
[366744064,1750427452659,-490.0,0.00026556,4]
[366744065,1750427452670,-337.64,0.00026556,4]
[366744066,1750427452679,-580.0,0.00026556,4]
[366744067,1750427452689,-598.38,0.00026556,4]
[366744068,1750427452699,-490.0,0.00026556,4]
[366744069,1750427452708,-490.0,0.00026556,4]
[366744070,1750427452717,-490.0,0.00026556,4]
[366744071,1750427452728,-490.0,0.00026556,4]
[366744072,1750427452738,-490.0,0.00026556,4]
[366744073,1750427452748,-315.92,0.00026556,4]
[366744074,1750427452758,-490.0,0.00026556,4]
[366744075,1750427452767,-490.0,0.00026556,4]
[366744076,1750427452777,-182.98,0.00026556,4]
[366744077,1750427452787,-676.72,0.00026556,4]
[366744078,1750427452796,-1444.99,0.00026556,4]
[366744079,1750427452806,-224.73,0.00026556,4]
[366744080,1750427452816,-490.0,0.00026556,4]
[366744081,1750427452825,-490.0,0.00026556,4]
[366744082,1750427452836,-490.0,0.00026556,4]
[366744083,1750427452845,-211.94,0.00026556,4]
[366744084,1750427452854,-578.53,0.00026556,4]
[366744085,1750427452864,-490.0,0.00026556,4]
[366744086,1750427452874,-786.94,0.00026556,4]
[366744087,1750427452884,-490.0,0.00026556,4]
[366744088,1750427452895,-511.82,0.00026556,4]
[366744089,1750427452904,-151.0,0.00026556,7]
[366744090,1750427452913,-151.0,0.00026556,7]
[366744091,1750427452923,-222.995545,0.00026556,7]
[366744092,1750427452933,-151.0,0.00026556,7]
[366744093,1750427452943,-151.0,0.00026556,7]
[366744094,1750427452953,-151.0,0.00026556,7]
[366744095,1750427452963,-151.0,0.00026556,7]
[366744096,1750427452973,-273.413564,0.00026556,7]
[366744097,1750427452982,-151.40706,0.00026575,7]
[366744098,1750427452991,-1000.0,0.00026575,5]
[366744099,1750427453001,-1000.0,0.00026575,5]
[366744100,1750427453011,-1000.0,0.00026575,5]
[366744101,1750427453021,-1000.0,0.00026575,5]
[366744102,1750427453031,-1000.0,0.00026575,5]
[366744103,1750427453040,-1000.0,0.00026575,5]
[366744104,1750427453049,-1000.0,0.00026575,5]
[366744105,1750427453059,-1000.0,0.00026575,5]
[366744106,1750427453068,-1000.0,0.00026575,5]
[366744107,1750427453078,-1000.0,0.00026575,5]
[366744108,1750427453088,-1000.0,0.00026575,5]
[366744109,1750427453098,-1000.0,0.00026575,5]
[366744110,1750427453108,-1000.0,0.00026575,5]
[366744111,1750427453118,-1000.0,0.00026575,5]
[366744112,1750427453128,-1000.0,0.00026575,5]
[366744113,1750427453139,-150.0,0.00026596,2]
[366744114,1750427453148,-200.0,0.00026616,2]
[366744115,1750427453160,-150.0,0.00026619,2]
[366744116,1750427453171,-2000.0,0.00026632,60]
[366744117,1750427453181,-150.0,0.00026655,2]
[366744118,1750427453191,-150.0,0.00026662,2]
[366744119,1750427453201,-151.40496026,0.00026672,2]
[366744120,1750427453211,-150.0,0.00026695,2]
[366744121,1750427453221,-800.0,0.000267,9]
[366744122,1750427453232,-150.0,0.00026733,2]
[366744123,1750427453242,-791.03,0.000268,2]
[366744124,1750427453251,-1700.0,0.000268,9]
[366744125,1750427453261,-150.0,0.0002681,2]
[366744126,1750427453271,-3729.0,0.00026811,2]
[366744127,1750427453281,-546.12,0.00026819,4]
[366744128,1750427453290,-672.81,0.00026819,4]
[366744129,1750427453300,-490.0,0.00026819,4]
[366744130,1750427453309,-490.0,0.00026819,4]
[366744131,1750427453318,-425.71,0.00026819,4]
[366744132,1750427453327,-58.92595828,0.00026819,4]
[366744133,1750427453519,-431.07404172,0.00026819,4]
[366744134,1750427453532,-490.0,0.00026819,4]
[366744135,1750427453541,-490.0,0.00026819,4]
[366744136,1750427453552,-490.0,0.00026819,2]
[366744137,1750427453562,-490.0,0.00026819,4]
[366744138,1750427453572,-311.64,0.0002682,4]
[366744139,1750427453582,-490.0,0.0002682,4]
[366744140,1750427453592,-699.86,0.0002682,4]
[366744141,1750427453602,-853.29,0.0002682,4]
[366744142,1750427453612,-490.0,0.0002682,4]
[366744143,1750427453622,-284.46,0.0002682,4]
[366744144,1750427453632,-391.76,0.0002682,4]
[366744145,1750427453642,-490.0,0.0002682,4]
[366744146,1750427453652,-493.47,0.0002682,4]
[366744147,1750427453663,-490.0,0.0002682,4]
[366744148,1750427453673,-490.0,0.0002682,4]
[366744149,1750427453683,-491.96,0.0002682,4]
[366744150,1750427453693,-658.32,0.0002682,4]
[366744151,1750427453703,-490.0,0.0002682,4]
[366744152,1750427453713,-490.0,0.0002682,4]
[366744153,1750427453723,-490.0,0.0002682,4]
[366744154,1750427453733,-1256.21,0.0002682,4]
[366744155,1750427453743,-490.0,0.0002682,4]
[366744156,1750427453753,-490.0,0.0002682,4]
[366744157,1750427453763,-490.0,0.0002682,4]
[366744158,1750427453772,-880.81,0.0002682,4]
[366744159,1750427453781,-490.0,0.0002682,4]
[366744160,1750427453791,-490.0,0.0002682,4]
[366744161,1750427453801,-490.0,0.0002682,4]
[366744162,1750427453811,-490.0,0.0002682,4]
[366744163,1750427453820,-180.72,0.0002682,4]
[366744164,1750427453830,-478.77,0.0002682,4]
[366744165,1750427453843,-151.0,0.0002682,7]
[366744166,1750427453852,-490.0,0.0002682,4]
[366744167,1750427453863,-151.0,0.0002682,7]
[366744168,1750427453873,-718.1,0.0002682,4]
[366744169,1750427453882,-490.0,0.0002682,4]
[366744170,1750427453892,-490.0,0.0002682,4]
[366744171,1750427453901,-490.0,0.0002682,4]
[366744172,1750427453911,-1116.34,0.0002682,4]
[366744173,1750427453920,-490.0,0.0002682,4]
[366744174,1750427453930,-490.0,0.0002682,4]
[366744175,1750427453940,-465.48,0.0002682,4]
[366744176,1750427453950,-490.0,0.0002682,4]
[366744177,1750427453959,-490.0,0.0002682,4]
[366744178,1750427453970,-490.0,0.0002682,4]
[366744179,1750427453980,-490.0,0.0002682,4]
[366744180,1750427453990,-210.42,0.0002682,4]
[366744181,1750427453999,-490.0,0.0002682,4]